bitfinex/quotes_ETHUSD_20250411
["timestamp","ask_amount","ask_price","bid_price","bid_amount"]
[1744375841746,7.683,1557.5,1557.1,14.02857372]
[1744375841951,15.667199,1557.5,1557.1,13.3370752]
[1744375842335,1.6615,1557.4,1557.1,13.3370652]
[1744375842520,8.08257,1557.4,1557.1,0.4929252]
[1744375842714,1.6615,1557.4,1557.1,6.42216]
[1744375842942,3.3943789,1557.4,1556.8,3.0]
[1744375843140,1.6652,1557.2,1556.9,6.42291]
[1744375843344,1.6652,1557.2,1556.9,0.47525209]
[1744375843653,7.681,1557.1,1556.8,6.42331]
[1744375843966,7.681,1557.1,1556.8,12.84663]
[1744375844126,8.08708,1557.2,1556.8,12.84663]
[1744375844333,1.6652,1557.2,1557.0,6.42259]
[1744375845064,1.6652,1557.2,1556.9,6.4229]
[1744375845271,1.6652,1557.2,1556.9,12.8458]
[1744375845627,6.42249,1557.1,1556.7,6.42383]
[1744375845961,1.5957,1556.9,1556.7,6.42383]
[1744375846268,1.5957,1556.9,1556.7,13.31822866]
[1744375846966,7.681,1557.0,1556.8,6.42343]
[1744375847170,7.681,1557.0,1556.8,12.84686]
[1744375847470,7.681,1557.0,1556.9,6.42302]
[1744375848566,1.5224,1557.1,1556.9,6.42302]
[1744375848770,14.1025,1557.3,1556.9,7.707595]
[1744375848771,9.2774,1557.3,1556.9,7.707595]
[1744375848971,15.69881,1557.3,1556.9,12.84585]
[1744375849269,9.2774,1557.3,1556.9,12.84585]
[1744375849471,15.69892,1557.3,1556.8,8.0406]
[1744375849670,6.4219,1557.2,1556.8,12.84672]
[1744375849977,15.69885,1557.3,1556.8,12.84672]
[1744375850172,18.08413089,1557.3,1556.8,12.84672]
[1744375850334,18.08413089,1557.3,1556.9,6.42277]
[1744375850765,18.08413089,1557.3,1556.9,12.84568]
[1744375851079,18.08413089,1557.3,1556.9,6.42277]
[1744375851276,18.08413089,1557.3,1556.9,12.84566]
[1744375851575,1.7,1557.2,1556.9,12.84566]
[1744375851777,1.7,1557.2,1556.9,6.42277]
[1744375852780,3.35416615,1557.2,1556.8,6.4233]
[1744375853088,1.7,1557.2,1556.7,3.47385599]
[1744375853375,1.7,1557.2,1557.1,10.94929]
[1744375853936,9.2995,1557.6,1557.4,6.42068]
[1744375853937,7.671,1557.6,1557.4,6.42068]
[1744375854246,7.671,1557.6,1557.4,6.4209]
[1744375854457,7.671,1557.6,1557.4,12.84175]
[1744375855450,7.671,1557.6,1557.5,6.42054]
[1744375856543,1.5437,1557.8,1557.6,6.42007]
[1744375856842,1.5437,1557.8,1557.6,6.42002]
[1744375857894,1.5437,1557.8,1557.6,6.42001]
[1744375859186,8.88457,1557.8,1557.4,6.42095]
[1744375859481,8.00572,1557.7,1557.4,0.48824114]
[1744375859677,1.5859,1557.7,1557.3,6.42126]
[1744375859840,1.5859,1557.7,1557.4,6.42095]
[1744375860282,8.00565,1557.7,1557.3,14.46642]
[1744375860579,9.540291,1557.7,1557.3,14.4664]
[1744375860877,8.01029,1557.6,1557.1,6.42207]
[1744375861086,1.5901,1557.6,1557.1,3.49108059]
[1744375861236,1.5901,1557.6,1557.2,12.8433]
[1744375861237,7.669,1557.5,1557.2,12.8433]
[1744375861442,10.669,1557.5,1557.1,9.42208]
[1744375861685,18.01545,1557.5,1557.1,12.84416]
[1744375862296,15.01545,1557.5,1557.1,12.84416]
[1744375862801,15.01545,1557.5,1557.1,6.42208]
[1744375862997,9.423915,1557.4,1557.0,6.42248]
[1744375863187,15.845005,1557.4,1557.0,6.89796767]
[1744375863572,15.845015,1557.4,1557.0,6.89796767]
[1744375863906,7.92227,1557.2,1556.8,6.42332]
[1744375864109,1.5002,1557.2,1556.7,6.42373]
[1744375864401,1.501545,1557.4,1556.6,6.42418]
[1744375864402,6.42273,1557.0,1556.6,6.42418]
[1744375864603,6.42314,1556.9,1556.5,6.42458]
[1744375864812,1.6327,1556.8,1556.4,14.134896]
[1744375865162,8.0563,1556.8,1556.4,8.20179608]
[1744375865423,8.05711,1556.6,1556.2,6.42573]
[1744375865696,8.05711,1556.6,1556.2,12.85149]
[1744375865901,14.48158,1556.6,1556.2,6.42573]
[1744375866086,6.42469,1556.5,1556.1,10.07786232]
[1744375866272,8.05711,1556.6,1556.1,10.07786232]
[1744375866471,8.05711,1556.6,1556.2,6.42576]
[1744375866693,14.48153,1556.6,1556.2,6.42576]
[1744375866997,6.42483,1556.5,1556.1,6.42621]
[1744375867163,1.6338,1556.4,1556.0,6.90714914]
[1744375867361,14.09669,1556.3,1555.9,6.42704]
[1744375867600,20.52246,1556.3,1555.9,6.42704]
[1744375867807,20.52246,1556.3,1555.8,14.4228]
[1744375867996,20.5224,1556.3,1555.9,6.42712]
[1744375868166,2.052246,1556.2,1555.9,6.42698]
[1744375868502,1.6373,1556.1,1555.9,6.42698]
[1744375868968,1.6373,1556.1,1555.8,12.85496]
[1744375869377,1.6373,1556.1,1555.9,12.8541]
[1744375870116,1.6373,1556.1,1555.8,13.34212868]
[1744375870298,1.6373,1556.1,1555.8,6.42737]
[1744375870484,1.6373,1556.1,1555.8,12.85476]
[1744375870684,1.6373,1556.1,1555.9,6.42707]
[1744375870877,1.6373,1556.1,1555.9,12.8541]
[1744375871079,9.3009,1556.3,1555.9,12.8541]
[1744375871280,9.3009,1556.3,1556.0,6.42647]
[1744375871507,3.0,1556.2,1556.0,12.85342]
[1744375871719,9.3009,1556.3,1556.0,6.42671]
[1744375871884,10.873513,1556.3,1556.0,6.42671]
[1744375872086,17.299133,1556.3,1555.8,13.33961729]
[1744375872285,17.299133,1556.3,1555.8,6.91216729]
[1744375872286,1.6231,1556.1,1555.8,6.91216729]
[1744375873417,14.47602,1556.1,1555.7,6.42794]
[1744375873612,14.47602,1556.1,1555.7,12.85588]
[1744375873613,8.04953,1556.1,1555.7,12.85588]
[1744375873817,9.497077,1556.1,1555.7,6.42794]
[1744375874815,3.070647,1556.1,1555.7,6.42794]
[1744375875023,1.6231,1556.1,1555.9,6.42697]
[1744375875205,1.6231,1556.1,1555.9,12.85394]
[1744375875412,1.6231,1556.1,1555.9,6.42697]
[1744375875721,9.1956,1556.3,1556.0,6.42656]
[1744375876077,1.5327,1556.2,1555.8,6.42744]
[1744375876279,1.5327,1556.2,1556.0,6.42639]
[1744375876474,4.5327,1556.2,1556.1,6.42632]
[1744375876682,1.5327,1556.2,1556.0,6.42639]
[1744375879125,1.5327,1556.2,1556.0,12.853]
[1744375879326,14.09651,1556.3,1556.0,12.853]
[1744375879327,7.671,1556.3,1556.1,6.42632]
[1744375879524,9.335,1556.3,1555.9,10.07876232]
[1744375879820,9.335,1556.3,1556.1,6.42632]
[1744375880019,9.335,1556.3,1556.1,6.4262]
[1744375880228,7.671,1556.3,1556.2,6.4259]
[1744375880805,1.5043,1556.5,1556.1,0.47181234]
[1744375881145,1.6653,1556.7,1556.4,12.85005]
[1744375881435,8.08928,1556.7,1556.3,18.12739232]
[1744375881929,1.6653,1556.7,1556.4,6.42495]
[1744375882228,1.6653,1556.7,1556.5,6.42455]
[1744375882531,7.675,1556.8,1556.6,6.42402]
[1744375883289,6.42388,1556.7,1556.5,0.48669951]
[1744375883495,1.6117,1556.6,1556.5,0.48669951]
[1744375884037,1.6117,1556.6,1556.4,12.85]
[1744375884709,1.6117,1556.6,1556.4,6.42495]
[1744375884905,1.6117,1556.6,1556.3,10.07704232]
[1744375885116,1.6117,1556.6,1556.4,12.84992]
[1744375885322,1.6117,1556.6,1556.3,16.50242232]
[1744375885993,1.6117,1556.6,1556.3,10.07702232]
[1744375886331,1.6117,1556.6,1556.3,16.50238232]
[1744375886538,3.0,1556.5,1556.3,6.8977023]
[1744375887239,3.0,1556.5,1556.3,13.3230923]
[1744375888134,3.0,1556.5,1556.4,6.42508]
[1744375889140,1.6093,1557.0,1556.6,12.84802]
[1744375889300,1.6093,1557.0,1556.7,6.42379]
[1744375889500,1.6093,1557.0,1556.6,1.5581]
[1744375889501,1.6093,1557.0,1556.8,6.42326]
[1744375889837,1.6093,1557.0,1556.7,6.42371]
[1744375890141,1.6093,1557.0,1556.7,12.84744]
[1744375890510,1.6093,1557.0,1556.8,6.42343]
[1744375890708,7.662,1557.1,1556.7,3.65165232]
[1744375890931,7.662,1557.1,1556.9,6.42276]
[1744375891340,7.662,1557.1,1557.0,6.4226]
[1744375891503,9.31,1557.4,1557.1,6.42201]
[1744375891717,9.31,1557.4,1557.2,12.84337]
[1744375892053,7.661,1557.4,1557.3,6.42137]
[1744375892239,1.649,1557.6,1557.3,12.84261]
[1744375892836,1.649,1557.6,1557.3,6.42131]
[1744375893152,20.94205548,1557.6,1557.1,6.42211]
[1744375893353,6.42065,1557.5,1557.1,6.42214]
[1744375893532,20.94196548,1557.6,1557.1,12.84421]
[1744375893854,1.5887,1557.4,1557.0,6.42249]
[1744375894157,8.00982,1557.4,1557.0,6.42249]
[1744375894355,8.00975,1557.4,1556.9,6.42297]
[1744375894649,15.66458,1557.3,1556.8,13.31638807]
[1744375894835,9.243,1557.3,1557.0,6.42221]
[1744375895039,9.243,1557.3,1557.1,6.42205]
[1744375896528,3.0,1557.2,1557.1,6.42205]
[1744375897352,3.0,1557.2,1556.9,6.42288]
[1744375898250,3.0,1557.2,1556.9,12.84577]
[1744375898428,3.0,1557.2,1557.0,6.4226]
[1744375898819,3.0,1557.2,1557.0,12.84507]
[1744375899053,3.0,1557.2,1557.0,6.42247]
[1744375899972,3.0,1557.2,1557.0,12.84494]
[1744375900487,1.6574,1557.1,1556.5,5.94333471]
[1744375900679,1.6574,1557.1,1556.8,6.42316]
[1744375900839,1.6574,1557.1,1556.9,6.42296]
[1744375901362,1.6574,1557.1,1556.9,6.42289]
[1744375901548,1.6574,1557.1,1556.8,14.35492]
[1744375902472,1.6574,1557.1,1556.8,12.84682]
[1744375903178,1.6574,1557.1,1556.8,6.42341]
[1744375903345,1.6574,1557.1,1556.7,1.6549]
[1744375903542,9.205,1557.3,1556.9,12.84566]
[1744375903747,10.767609,1557.3,1557.0,6.42237]
[1744375903974,17.188989,1557.3,1556.9,6.42292]
[1744375904276,17.188989,1557.3,1556.9,12.84582]
[1744375904478,17.188989,1557.3,1556.9,6.4229]
[1744375904845,17.188989,1557.3,1556.9,12.84579]
[1744375906184,10.767609,1557.3,1557.0,6.42254]
[1744375906670,3.0,1557.2,1557.0,12.84502]
[1744375907453,9.205,1557.3,1557.0,12.84502]
[1744375908414,7.66,1557.3,1557.1,12.84436]
[1744375908550,7.66,1557.3,1557.1,6.42218]
[1744375908978,7.66,1557.3,1557.2,6.42178]
[1744375909682,9.2482,1557.3,1557.1,6.42209]
[1744375909994,7.66,1557.3,1557.1,12.84416]
[1744375910200,7.66,1557.3,1557.1,14.128576]
[1744375911057,7.66,1557.3,1557.1,1.284416]
[1744375911371,1.5625,1557.2,1556.9,0.012]
[1744375911567,6.42223,1557.1,1556.9,0.012]
[1744375911780,8.0176,1557.0,1556.9,0.012]
[1744375912306,11.0176,1557.0,1556.9,0.012]
[1744375914590,11.5676,1557.0,1556.9,0.012]
[1744375914785,14.684723,1557.0,1556.9,0.012]
[1744375915620,14.134723,1557.0,1556.9,0.012]
[1744375916321,6.42325,1556.9,1556.5,6.42457]
[1744375916620,7.646,1556.9,1556.6,6.42407]
[1744375916927,7.646,1556.9,1556.6,12.84821]
[1744375917091,7.646,1556.9,1556.6,6.42407]
[1744375917488,7.646,1556.9,1556.5,7.96289]
[1744375917489,9.512366,1556.9,1556.5,14.38748]
[1744375917688,9.512366,1556.9,1556.6,6.42422]
[1744375917986,9.512366,1556.9,1556.6,12.84844]
[1744375918189,7.646,1556.9,1556.6,12.84844]
[1744375918389,3.0,1557.0,1556.8,6.42343]
[1744375918704,3.0,1557.0,1556.9,6.42302]
[1744375920020,3.0,1557.0,1556.7,6.91134086]
[1744375920207,1.6319,1556.9,1556.6,6.42409]
[1744375920528,2.737367,1556.9,1556.6,12.84822]
[1744375920695,1.6319,1556.9,1556.7,6.42384]
[1744375920893,3.0,1557.0,1556.7,14.40788]
[1744375921222,3.0,1557.0,1556.8,12.84664]
[1744375921628,3.0,1557.0,1556.9,6.42302]
[1744375922622,7.647,1557.2,1556.9,6.42302]
[1744375923030,7.647,1557.2,1556.9,12.8459]
[1744375923653,9.2822,1557.5,1557.1,12.84438]
[1744375923805,9.2822,1557.5,1557.2,6.42161]
[1744375924731,15.70279,1557.5,1557.0,7.94019]
[1744375924931,8.02923,1557.3,1556.8,14.42309]
[1744375925096,1.6077,1557.0,1556.6,8.00054]
[1744375925295,1.6077,1557.0,1556.7,6.4237]
[1744375925844,1.6077,1557.0,1556.6,15.224824]
[1744375925998,1.6077,1557.0,1556.7,6.42383]
[1744375926735,1.6077,1557.0,1556.7,6.42372]
[1744375927434,1.6077,1557.0,1556.4,14.64713969]
[1744375927632,6.42312,1556.9,1556.5,6.42454]
[1744375928001,8.03044,1557.0,1556.4,8.22222969]
[1744375928219,1.6077,1557.0,1556.5,0.82222297]
[1744375928412,1.6077,1557.0,1556.8,6.42342]
[1744375928934,1.6077,1557.0,1556.7,8.03048]
[1744375929133,8.03035,1557.0,1556.5,6.4245]
[1744375929331,6.42313,1556.9,1556.5,6.4245]
[1744375929533,7.868486,1556.9,1556.5,6.4245]
[1744375930144,7.868486,1556.9,1556.5,12.84905]
[1744375930822,1.445356,1556.9,1556.6,6.42393]
[1744375931029,8.03038,1557.0,1556.6,6.42393]
[1744375931428,14.45312,1557.0,1556.6,6.42393]
[1744375931840,1.6077,1557.0,1556.6,12.84805]
[1744375932137,8.07283,1556.9,1556.5,6.42455]
[1744375933057,8.07283,1556.9,1556.5,6.42454]
[1744375933340,0.807283,1556.8,1556.4,12.84994]
[1744375935923,0.807283,1556.8,1556.5,6.42462]
[1744375938965,1.6181,1556.4,1556.1,12.85241]
[1744375939463,14.07357,1556.3,1555.8,1.5074]
[1744375939635,1.407357,1556.2,1555.9,6.42695]
[1744375940236,7.98757,1556.1,1555.7,10.08827969]
[1744375940443,7.98757,1556.1,1555.7,6.42785]
[1744375940643,1.5611,1556.1,1555.8,6.42752]
[1744375940849,1.5611,1556.1,1555.8,12.85495]
[1744375941365,2.5005457,1556.1,1555.8,12.85495]
[1744375941583,2.5005457,1556.1,1555.8,6.42743]
[1744375942181,2.5005457,1556.1,1555.7,12.85571]
[1744375942563,2.5005457,1556.1,1555.8,6.42746]
[1744375942874,2.5005457,1556.1,1555.9,6.427]
[1744375943170,1.5611,1556.1,1555.9,12.85403]
[1744375943378,1.5611,1556.1,1555.9,6.427]
[1744375943579,1.407357,1556.2,1555.8,3.66042969]
[1744375943746,9.2911,1556.3,1556.0,12.85308]
[1744375944368,9.2911,1556.3,1556.0,6.4264]
[1744375944666,10.862725,1556.3,1556.0,12.85302]
[1744375944959,17.288465,1556.3,1555.8,13.08764969]
[1744375945165,23.714355,1556.3,1555.8,12.85465]
[1744375945579,17.288465,1556.3,1555.9,6.42711]
[1744375945931,23.714355,1556.3,1555.8,12.85465]
[1744375946133,1.6238,1556.1,1555.7,6.42785]
[1744375946335,1.6525,1555.9,1555.6,6.42812]
[1744375946535,9.2875,1555.9,1555.6,6.42812]
[1744375946869,9.2875,1555.9,1555.7,6.42786]
[1744375947035,7.635,1555.9,1555.7,6.42786]
[1744375949497,8.08923,1556.1,1555.6,0.48540492]
[1744375949498,1.6628,1556.1,1555.6,0.48540492]
[1744375949645,7.636,1556.2,1555.9,6.42679]
[1744375949852,7.636,1556.2,1555.8,6.42752]
[1744375950361,7.636,1556.2,1555.8,12.85495]
[1744375950669,7.636,1556.2,1555.7,3.66042969]
[1744375950670,7.636,1556.2,1555.9,6.42693]
[1744375950869,15.1447125,1556.2,1555.8,6.42749]
[1744375951038,1.6645,1556.1,1555.8,6.42749]
[1744375951239,1.6645,1556.1,1555.7,10.08826969]
[1744375951572,8.09098,1556.1,1555.7,3.66042969]
[1744375951760,0.809098,1556.0,1555.7,16.51622969]
[1744375952259,1.6645,1556.1,1555.7,16.51622969]
[1744375952463,1.6645,1556.1,1555.7,10.08826969]
[1744375952464,8.09087,1556.1,1555.7,10.08826969]
[1744375952945,8.09087,1556.1,1555.7,6.42784]
[1744375953148,1.5846,1556.0,1555.5,10.08910969]
[1744375954643,9.1412,1556.0,1555.8,6.42755]
[1744375955470,9.1412,1556.0,1555.8,12.85498]
[1744375955672,7.636,1556.0,1555.9,6.42714]
[1744375956838,7.636,1556.0,1555.8,6.4274]
[1744375957040,9.1352125,1556.2,1555.8,12.85485]
[1744375957243,0.91352125,1556.1,1555.9,6.42701]
[1744375957441,2.7091825,1556.2,1555.9,12.85402]
[1744375957672,2.7091825,1556.2,1556.0,6.42673]
[1744375957872,4.77107273,1556.4,1556.2,6.4257]
[1744375958076,4.77107273,1556.4,1556.3,6.42549]
[1744375958979,0.805383,1556.6,1556.3,1.5213]
[1744375959152,6.35367273,1556.7,1556.5,6.42453]
[1744375959352,6.35367273,1556.7,1556.5,12.84906]
[1744375959960,6.35367273,1556.7,1556.4,6.42502]
[1744375960152,6.35367273,1556.7,1556.4,6.42496]
[1744375960352,6.35367273,1556.7,1556.5,6.42465]
[1744375960602,6.98904,1556.7,1556.5,6.42465]
[1744375960790,5.40644,1556.7,1556.5,12.8492]
[1744375960951,4.77107273,1556.7,1556.5,12.8492]
[1744375961787,1.6057,1556.8,1556.5,6.42455]
[1744375961989,1.6057,1556.8,1556.5,12.84911]
[1744375962891,1.6057,1556.8,1556.6,12.84836]
[1744375964310,1.6057,1556.8,1556.7,6.42384]
[1744375964514,1.6057,1556.8,1556.6,12.84828]
[1744375964671,9.2433,1557.0,1556.7,6.42384]
[1744375964867,9.2433,1557.0,1556.7,12.84757]
[1744375965196,3.0,1556.9,1556.7,6.42373]
[1744375965991,3.0,1556.9,1556.5,12.84913]
[1744375966196,1.5676,1556.8,1556.5,6.42456]
[1744375966690,1.5676,1556.8,1556.6,6.42423]
[1744375966911,1.5676,1556.8,1556.5,7.875715]
[1744375967087,1.5676,1556.8,1556.5,14.300315]
[1744375967400,1.5676,1556.8,1556.5,6.4246]
[1744375967799,1.5676,1556.8,1556.5,12.84915]
[1744375968298,1.6567,1556.8,1556.1,1.6443]
[1744375968464,6.42403,1556.7,1556.3,6.42512]
[1744375968663,8.08013,1556.8,1556.4,6.42505]
[1744375968864,0.808013,1556.7,1556.4,6.42497]
[1744375969191,0.808013,1556.7,1556.2,9.42577]
[1744375969358,1.6564,1556.5,1556.2,16.32999798]
[1744375969563,8.0812,1556.5,1556.1,6.42621]
[1744375970071,8.0812,1556.5,1556.1,12.85241]
[1744375970276,1.6564,1556.5,1556.2,6.42569]
[1744375970499,1.6564,1556.5,1556.2,12.85138]
[1744375970801,8.08107,1556.5,1556.2,6.42569]
[1744375971012,16.719817,1556.5,1556.2,6.42569]
[1744375971304,3.870317,1556.5,1556.1,3.66042969]
[1744375971608,1.6564,1556.5,1556.2,1.6295]
[1744375971894,6.42521,1556.4,1556.0,13.33664966]
[1744375972069,6.42521,1556.4,1556.0,12.85299]
[1744375972274,6.42618,1556.2,1555.8,6.4274]
[1744375972464,8.616968,1556.1,1555.8,6.4274]
[1744375972659,8.616968,1556.1,1555.7,6.42786]
[1744375972866,8.616968,1556.1,1555.6,8.04613]
[1744375972867,6.42686,1556.0,1555.6,8.04613]
[1744375973170,1.548,1555.9,1555.6,6.42833]
[1744375973900,6.42756,1555.8,1555.5,12.85743]
[1744375974064,6.42756,1555.8,1555.5,6.42867]
[1744375974270,14.295563,1555.8,1555.5,6.42867]
[1744375974478,7.867843,1555.8,1555.5,6.42867]
[1744375975209,3.0,1555.7,1555.5,6.42867]
[1744375976712,3.0,1555.7,1555.4,14.96373323]
[1744375977110,3.0,1555.7,1555.4,6.42908]
[1744375977111,9.42808,1555.7,1555.4,6.42908]
[1744375977410,11.1576453,1555.7,1555.4,6.42908]
[1744375977627,1.6119,1555.6,1555.3,6.42953]
[1744375977932,8.04069,1555.6,1555.2,13.2524384]
[1744375978080,14.46948,1555.6,1555.2,13.2524384]
[1744375978286,6.4289,1555.5,1555.2,0.3925984]
[1744375978598,6.4289,1555.5,1555.2,6.8226284]
[1744375978991,16.08892453,1555.6,1555.2,13.2525084]
[1744375979191,6.42882,1555.5,1555.2,6.8224784]
[1744375979732,6.42882,1555.5,1555.2,13.2523784]
[1744375980213,8.03773245,1555.5,1555.2,13.2523784]
[1744375980520,1.60891245,1555.5,1555.2,13.2523784]
[1744375980999,1.6219,1555.8,1555.5,6.4286]
[1744375981208,7.623,1555.9,1555.6,6.42808]
[1744375981524,14.05028,1555.9,1555.6,12.85632]
[1744375981707,14.05028,1555.9,1555.6,6.42808]
[1744375981708,7.623,1555.9,1555.6,6.42808]
[1744375982023,6.42772,1555.8,1555.5,8.08213]
[1744375982223,6.42772,1555.8,1555.4,6.42913]
[1744375982430,7.94929,1555.7,1555.3,8.0312]
[1744375982590,9.190171,1555.9,1555.3,8.0312]
[1744375982591,6.42767,1555.8,1555.5,6.42859]
[1744375982790,23.565951,1555.9,1555.5,12.85719]
[1744375982988,17.138621,1555.9,1555.6,12.85658]
[1744375983219,17.138621,1555.9,1555.6,12.85653]
[1744375983420,10.711371,1555.9,1555.6,12.85653]
[1744375983947,17.138521,1555.9,1555.6,12.85653]
[1744375984088,17.138521,1555.9,1555.6,6.42826]
[1744375984284,23.565811,1555.9,1555.6,6.42826]
[1744375984521,8.7842411,1555.8,1555.5,6.90341219]
[1744375984724,8.7842411,1555.8,1555.3,1.6017]
[1744375984889,6.42808,1555.7,1555.4,12.85816]
[1744375985290,6.42808,1555.7,1555.4,6.42907]
[1744375985495,6.42808,1555.7,1555.4,6.42919]
[1744375985715,7.94931311,1555.7,1555.4,6.42919]
[1744375985919,14.37748311,1555.7,1555.4,6.4291]
[1744375986324,6.4284,1555.6,1555.3,14.46072]
[1744375987132,14.47317,1555.6,1555.3,8.03121]
[1744375987287,8.0446,1555.6,1555.3,6.42951]
[1744375987487,9.00118331,1555.6,1555.3,6.42951]
[1744375987687,15.42974331,1555.6,1555.3,6.42951]
[1744375987914,9.00118331,1555.6,1555.3,6.42951]
[1744375988190,9.00118331,1555.6,1555.3,12.85901]
[1744375988583,9.00118331,1555.6,1555.3,6.4295]
[1744375989636,9.00118331,1555.6,1555.3,12.85899]
[1744375989802,2.57278331,1555.6,1555.4,6.42918]
[1744375990143,3.0,1555.5,1555.4,6.42918]
[1744375990544,16.7203611,1555.8,1555.4,12.85828]
[1744375990718,16.7205011,1555.8,1555.4,12.85828]
[1744375990911,10.2926411,1555.8,1555.4,12.85828]
[1744375991113,3.8649811,1555.8,1555.5,6.42877]
[1744375991302,3.8649811,1555.8,1555.6,6.42828]
[1744375991702,3.8649811,1555.8,1555.5,12.85738]
[1744375992208,1.5084,1555.8,1555.6,6.42836]
[1744375992414,14.05027,1555.9,1555.6,12.85662]
[1744375992610,14.05027,1555.9,1555.7,7.99662]
[1744375992611,7.623,1555.9,1555.7,7.99662]
[1744375992814,7.623,1555.9,1555.7,14.42447]
[1744375993017,7.623,1555.9,1555.7,7.99662]
[1744375993206,8.54514,1555.9,1555.6,6.42827]
[1744375993410,14.97252,1555.9,1555.5,7.99076]
[1744375993815,21.39982,1555.9,1555.5,7.99076]
[1744375994032,14.97244,1555.9,1555.5,7.99076]
[1744375994253,21.39978,1555.9,1555.5,7.99076]
[1744375994422,14.97244,1555.9,1555.5,12.85733]
[1744375994614,14.97244,1555.9,1555.6,6.42836]
[1744375994805,8.54514,1555.9,1555.5,6.90632003]
[1744375995005,8.54514,1555.9,1555.6,6.42826]
[1744375995247,3.0,1555.8,1555.5,13.33500003]
[1744375995550,3.0,1555.8,1555.5,13.33501003]
[1744375996208,8.03619,1555.7,1555.3,6.4294]
[1744375996549,15.568139,1555.7,1555.3,6.4294]
[1744375997544,15.568139,1555.7,1555.2,0.3925984]
[1744375997545,6.42943,1555.4,1555.2,0.3925984]
[1744375997746,7.624,1555.3,1555.2,0.3925984]
[1744375998054,7.624,1555.3,1555.2,6.8226384]
[1744375998906,7.624,1555.6,1555.2,5.62262576]
[1744375999113,15.7273419,1555.6,1555.3,6.42951]
[1744375999402,9.2989519,1555.6,1555.3,12.85901]
[1744376000002,7.624,1555.6,1555.4,6.42915]
[1744376000208,9.2066,1555.9,1555.6,12.85655]
[1744376000434,9.2066,1555.9,1555.7,6.42785]
[1744376001241,15.63386,1555.9,1555.6,6.42831]
[1744376001463,18.31703927,1555.9,1555.6,6.42827]
[1744376002061,9.2066,1555.9,1555.6,12.85654]
[1744376002562,15.63381,1555.9,1555.6,6.42827]
[1744376002741,6.42788,1555.8,1555.4,6.42903]
[1744376002946,6.42797,1555.7,1555.4,6.42903]
[1744376003315,1.5693,1555.6,1555.4,6.42903]
[1744376003511,7.99769,1555.6,1555.3,12.85902]
[1744376003763,1.5693,1555.6,1555.3,6.4295]
[1744376003919,8.00568,1555.8,1555.5,6.4288]
[1744376004127,8.00568,1555.8,1555.5,12.8576]
[1744376004333,1.578,1555.8,1555.5,12.8576]
[1744376004821,7.624,1555.9,1555.7,6.42785]
[1744376005260,7.624,1555.9,1555.7,12.85569]
[1744376005939,14.05118,1555.9,1555.6,6.42827]
[1744376006123,14.05118,1555.9,1555.7,6.42793]
[1744376006124,7.624,1555.9,1555.7,6.42793]
[1744376006329,7.624,1555.9,1555.8,6.42756]
[1744376006554,65.76388,1556.2,1555.8,6.42756]
[1744376006757,65.76388,1556.2,1555.9,6.42702]
[1744376007116,1.5632,1556.1,1555.5,3.0]
[1744376007451,7.98963,1556.1,1555.8,6.42742]
[1744376007651,14.44207548,1556.1,1555.8,12.85483]
[1744376007959,8.01564548,1556.1,1555.8,12.85483]
[1744376009651,14.44202548,1556.1,1555.8,6.42741]
[1744376009951,20.86852548,1556.1,1555.8,6.42741]
[1744376010155,14.44202548,1556.1,1555.8,6.42741]
[1744376010450,3.0,1556.0,1555.8,6.42741]
[1744376010750,3.0,1556.0,1555.8,12.85482]
[1744376011055,3.0,1556.0,1555.9,6.42714]
[1744376011563,3.0,1556.0,1555.9,8.07654]
[1744376012429,1.5733,1556.3,1556.0,6.42666]
[1744376012630,14.42476,1556.3,1555.9,12.85428]
[1744376012851,7.99895,1556.3,1556.0,6.42664]
[1744376013168,15.224655,1556.3,1556.0,6.42664]
[1744376013527,8.798845,1556.3,1556.0,12.85325]
[1744376014156,8.798845,1556.3,1556.0,12.85323]
[1744376014352,8.798845,1556.3,1556.0,6.42661]
[1744376014561,8.798845,1556.3,1556.0,12.85321]
[1744376014748,8.798845,1556.3,1556.0,6.4266]
[1744376015159,8.798845,1556.3,1556.0,12.85321]
[1744376015353,3.0,1556.2,1556.0,12.85321]
[1744376015948,3.0,1556.2,1556.0,6.4266]
[1744376016466,3.0,1556.2,1555.9,14.47618]
[1744376016633,4.1798845,1556.2,1556.0,6.42672]
[1744376016829,4.1798845,1556.2,1556.0,12.85344]
[1744376017028,3.0,1556.2,1556.0,12.85344]
[1744376017669,3.0,1556.2,1556.1,6.42632]
[1744376020739,3.0,1556.2,1556.1,11.65974736]
[1744376021048,4.77107273,1556.5,1556.3,12.8507]
[1744376021243,4.77107273,1556.5,1556.3,12.85071]
[1744376021450,4.77107273,1556.5,1556.4,6.42508]
[1744376021650,12.43386,1556.5,1556.3,0.48132386]
[1744376021940,1.6264,1556.4,1556.3,0.48132386]
[1744376022164,1.6264,1556.4,1556.1,14.41968]
[1744376022369,4.77107273,1556.5,1556.2,6.42555]
[1744376022678,13.231492,1556.5,1556.2,6.42555]
[1744376023038,19.656452,1556.5,1556.1,12.85236]
[1744376023577,13.231492,1556.5,1556.2,6.42586]
[1744376023773,19.656362,1556.5,1556.2,6.42586]
[1744376024275,19.656302,1556.5,1556.2,6.42586]
[1744376024479,19.656302,1556.5,1556.1,12.85238]
[1744376024842,19.656302,1556.5,1556.1,13.32459865]
[1744376025044,14.88522927,1556.5,1556.1,13.32459865]